bitfinex/quotes_ETHUSD_20250223
["timestamp","ask_amount","ask_price","bid_price","bid_amount"]
[1740335990696,0.71704145,2818.0,2817.8,3.54877]
[1740335990895,0.71704145,2818.0,2817.9,0.07456103]
[1740335991408,1.51254145,2818.0,2817.9,0.07456103]
[1740335991703,1.51254145,2818.0,2817.6,3.5491]
[1740335991881,1.51254145,2818.0,2817.9,0.07456103]
[1740335992207,1.51254145,2818.0,2817.2,3.54955]
[1740335992208,3.54874,2817.9,2817.2,4.28401]
[1740335992380,2.0186496,2818.0,2817.9,0.07495453]
[1740335992381,5.5672596,2818.0,2817.9,0.07495453]
[1740335992568,3.54898,2817.8,2817.2,3.54953]
[1740335992970,3.54898,2817.8,2817.3,0.07495453]
[1740335993205,3.54876,2817.9,2817.3,0.07495453]
[1740335993511,3.54899,2817.7,2817.4,0.07495453]
[1740335993868,3.54912,2817.6,2817.1,7.09929]
[1740335994067,3.54912,2817.6,2817.2,0.07495453]
[1740335994704,4.34462,2817.6,2817.2,0.07495453]
[1740335995070,0.7955,2817.6,2817.2,3.62445453]
[1740335995276,4.34462,2817.6,2817.2,3.62445453]
[1740335995712,0.7955,2817.6,2817.2,3.62445453]
[1740335996210,0.7955,2817.8,2817.4,3.54929]
[1740335996713,0.7955,2817.8,2817.5,0.07227758]
[1740335996912,0.7955,2817.8,2817.4,3.54929]
[1740335997310,0.7955,2817.8,2817.5,0.07227758]
[1740335997678,4.34437,2817.8,2817.4,3.54936]
[1740335998017,4.34437,2817.8,2817.5,0.07227758]
[1740335998410,0.7955,2817.8,2817.5,0.07227758]
[1740335998615,0.7955,2817.8,2817.5,3.62150758]
[1740335998913,0.7955,2817.8,2817.5,0.07227758]
[1740335999819,4.34437,2817.8,2817.5,0.07227758]
[1740336001006,4.34437,2817.8,2817.3,3.54944]
[1740336001184,4.34437,2817.8,2817.6,0.07227758]
[1740336001393,4.34437,2817.8,2817.3,3.54944]
[1740336001918,4.34437,2817.8,2817.4,0.06969624]
[1740336002118,0.7955,2817.8,2817.4,0.06969624]
[1740336002320,0.7955,2817.8,2817.4,3.61905624]
[1740336002480,0.7955,2817.8,2817.5,3.54922]
[1740336003118,0.7955,2817.8,2817.6,0.06969624]
[1740336003708,4.34412,2818.0,2817.6,0.06969624]
[1740336004321,3.54875,2817.9,2817.6,0.06969624]
[1740336004521,4.34412,2818.0,2817.6,0.06969624]
[1740336004826,3.54874,2817.9,2817.6,0.06969624]
[1740336005730,4.25,2818.1,2817.8,3.54884]
[1740336005904,0.7955,2818.2,2817.8,3.54884]
[1740336006105,0.7955,2818.2,2817.9,3.61879557]
[1740336006428,4.25,2818.4,2818.2,3.54823]
[1740336006792,4.25,2818.4,2818.3,3.54823]
[1740336006992,4.25,2818.4,2818.3,0.07011557]
[1740336007287,5.0235,2818.4,2818.0,3.54853]
[1740336007491,5.0235,2818.4,2818.1,0.06998721]
[1740336007906,3.54836,2818.2,2818.1,0.06998721]
[1740336008107,5.880656,2818.4,2817.6,4.28349]
[1740336008108,8.57171,2818.4,2817.9,3.54863]
[1740336008294,3.54843,2818.2,2818.0,0.06979041]
[1740336008495,3.54843,2818.2,2817.6,4.2834]
[1740336008740,3.54843,2818.2,2817.7,0.06979897]
[1740336009035,3.54843,2818.2,2817.7,3.61875897]
[1740336009926,5.0235,2818.4,2818.0,3.5486]
[1740336010337,5.0235,2818.4,2818.1,0.06979897]
[1740336010744,4.25,2818.4,2818.3,3.54823]
[1740336010949,4.25,2818.4,2818.1,0.06979897]
[1740336011110,4.25,2818.4,2817.8,0.7344]
[1740336011294,4.25,2818.4,2818.1,3.54839]
[1740336011501,3.54787,2818.6,2818.1,3.54839]
[1740336011731,3.54787,2818.6,2818.2,0.06979897]
[1740336012335,0.7735,2818.7,2818.4,3.548]
[1740336013044,0.7735,2818.7,2818.5,0.06979897]
[1740336013443,0.69361697,2818.6,2818.5,0.06979897]
[1740336013725,0.69361697,2818.6,2818.5,3.61777897]
[1740336013909,0.69361697,2818.6,2818.5,0.06979897]
[1740336014110,4.24147697,2818.6,2817.9,3.54868]
[1740336014321,3.54798,2818.5,2818.0,3.61839897]
[1740336014640,0.69361697,2818.6,2818.1,3.54846]
[1740336014940,0.69361697,2818.6,2818.2,3.5483]
[1740336015238,0.69361697,2818.6,2818.2,3.61809897]
[1740336015434,0.69361697,2818.6,2818.3,3.54823]
[1740336015620,0.69361697,2818.6,2818.3,7.0964]
[1740336015827,0.69361697,2818.6,2818.3,3.54814]
[1740336016042,0.69361697,2818.6,2818.4,0.06979897]
[1740336016222,3.54798,2818.5,2818.4,0.06979897]
[1740336016424,3.54798,2818.5,2818.0,3.54858]
[1740336016742,3.54831,2818.3,2817.8,3.54886]
[1740336017038,7.09664,2818.3,2818.1,0.06979897]
[1740336017225,7.09664,2818.3,2817.8,3.54886]
[1740336017426,3.54831,2818.3,2818.2,0.06940535]
[1740336017603,3.54878,2817.9,2817.4,3.54937]
[1740336017939,3.54878,2817.9,2817.5,0.06955936]
[1740336018102,3.54907,2817.7,2817.5,0.06955936]
[1740336018302,3.54907,2817.7,2817.3,0.7344]
[1740336018541,3.54907,2817.7,2817.4,0.06955936]
[1740336018744,0.7722,2817.8,2817.4,0.06955936]
[1740336019035,4.32106,2817.8,2817.4,0.06955936]
[1740336021243,0.71496327,2817.5,2817.4,0.06955936]
[1740336021745,0.71496327,2817.5,2817.4,3.61892936]
[1740336022212,0.7722,2817.8,2817.4,3.61892936]
[1740336022420,0.7722,2817.8,2817.5,3.54923]
[1740336022723,4.25,2818.1,2817.7,3.5489]
[1740336022934,4.25,2818.1,2817.8,0.06955936]
[1740336023476,3.5485,2818.1,2817.7,3.54899]
[1740336023652,0.7722,2818.2,2817.9,0.06982464]
[1740336023906,4.32056,2818.2,2817.7,7.09783]
[1740336024064,4.32056,2818.2,2818.0,0.06982464]
[1740336024229,8.63396578,2818.2,2817.7,3.54891]
[1740336024430,5.08548578,2818.2,2818.1,0.06982464]
[1740336024764,3.5485,2818.1,2817.7,3.54891]
[1740336026401,3.5485,2818.1,2817.6,3.54911]
[1740336026538,3.54861,2818.0,2817.6,3.54911]
[1740336029469,3.54861,2818.0,2817.5,3.54923]
[1740336032882,3.54856,2818.1,2817.6,3.54904]
[1740336033026,3.54856,2818.1,2817.6,7.09808]
[1740336033226,3.54856,2818.1,2817.6,3.54904]
[1740336033458,3.54865,2818.0,2817.6,3.54904]
[1740336033772,3.54856,2818.1,2817.6,3.54904]
[1740336034469,0.7722,2818.2,2817.6,3.54904]
[1740336034470,3.54863,2818.0,2817.6,3.54904]
[1740336034969,4.32057,2818.2,2817.6,3.54904]
[1740336035174,3.5485,2818.1,2817.6,7.09808]
[1740336035471,4.32057,2818.2,2817.6,3.54904]
[1740336035669,3.54854,2818.1,2817.6,3.54904]
[1740336035826,3.54854,2818.1,2817.6,7.0981]
[1740336036168,3.54854,2818.1,2817.7,3.54897]
[1740336037271,0.27304072,2818.3,2817.9,3.54866]
[1740336037478,0.27304072,2818.3,2817.8,0.7344]
[1740336037771,0.27304072,2818.3,2818.0,3.54861]
[1740336038125,5.0535,2818.4,2818.0,3.54861]
[1740336038323,8.60173,2818.4,2817.8,3.54878]
[1740336038564,8.60173,2818.4,2817.9,0.14473253]
[1740336038565,4.49412217,2818.3,2817.9,0.14473253]
[1740336039181,0.94580217,2818.3,2817.9,0.14473253]
[1740336039377,3.54837,2818.2,2817.9,0.14473253]
[1740336039811,3.54861,2818.0,2817.9,0.14473253]
[1740336040009,0.435211,2818.0,2817.2,4.28393]
[1740336040176,0.8035,2817.9,2817.2,4.28393]
[1740336040517,3.54895,2817.8,2817.2,4.28393]
[1740336040715,0.8035,2817.9,2817.0,6.1244]
[1740336041015,4.35293,2817.4,2817.0,6.1244]
[1740336041179,4.35293,2817.4,2817.0,0.7344]
[1740336041500,0.8035,2817.4,2817.0,4.28427]
[1740336042112,3.5495,2817.3,2817.0,0.7344]
[1740336042317,3.5495,2817.3,2816.9,3.54999]
[1740336045429,4.35287,2817.4,2816.9,3.54999]
[1740336048537,0.8035,2817.4,2816.9,3.54999]
[1740336048743,7.09908,2817.3,2816.8,3.5501]
[1740336048907,3.5495,2817.3,2816.8,3.5501]
[1740336049848,3.5495,2817.3,2816.9,3.54997]
[1740336050310,3.54951,2817.3,2816.7,4.28458]
[1740336050513,0.8138,2817.2,2816.4,4.28495]
[1740336050905,3.55008,2816.9,2816.4,4.28495]
[1740336051141,0.8138,2816.8,2816.4,4.28495]
[1740336051371,0.8138,2816.8,2816.4,3.55055]
[1740336051638,0.8138,2816.8,2816.5,3.55041]
[1740336051854,3.54962,2817.2,2816.7,3.55025]
[1740336052155,3.54982,2817.1,2816.6,3.55032]
[1740336052504,3.54982,2817.1,2816.7,3.55024]
[1740336052753,3.54982,2817.1,2816.5,0.7344]
[1740336052941,3.54982,2817.1,2816.6,3.55027]
[1740336053142,3.54982,2817.1,2816.7,0.12281526]
[1740336054011,4.36068,2817.2,2816.7,3.67299526]
[1740336054401,4.36068,2817.2,2816.7,7.22316526]
[1740336054745,3.54984,2817.1,2816.7,0.12281526]
[1740336055038,0.811,2817.2,2816.7,3.67304526]
[1740336055245,4.36063,2817.2,2816.7,3.67304526]
[1740336055443,4.36063,2817.2,2816.8,3.55012]
[1740336055736,0.811,2817.2,2816.5,4.28488]
[1740336055942,3.54996,2817.0,2816.6,0.12281526]
[1740336056316,0.811,2817.2,2816.6,0.12281526]
[1740336056522,0.811,2816.7,2816.3,7.10134]
[1740336056835,0.811,2816.7,2816.4,3.67342526]
[1740336058440,0.811,2816.7,2816.4,0.12281526]
[1740336058628,0.811,2816.9,2816.5,3.55044]
[1740336058964,4.361,2816.9,2816.6,0.12281526]
[1740336060340,4.36103,2816.9,2816.6,0.12281526]
[1740336061733,0.811,2816.9,2816.6,0.12281526]
[1740336062829,4.31554,2817.1,2816.7,3.55024]
[1740336063266,0.7658,2817.1,2816.8,0.12362018]
[1740336063558,4.31559,2817.1,2816.6,4.28477]
[1740336063765,4.31559,2817.1,2816.7,0.12362018]
[1740336063949,1.066839,2817.3,2816.8,0.44083902]
[1740336064152,4.25,2817.4,2817.3,3.54949]
[1740336064368,4.25,2817.7,2817.4,3.54926]
[1740336064664,4.25,2817.7,2817.3,3.54941]
[1740336064865,4.25,2817.7,2817.5,0.12179165]
[1740336065067,4.25,2817.7,2817.3,3.54941]
[1740336065266,4.25,2817.7,2817.6,0.12179165]
[1740336065428,4.25,2817.7,2817.4,7.83307]
[1740336065628,4.25,2817.7,2817.6,0.12179165]
[1740336065862,4.25,2817.7,2817.4,0.7344]
[1740336066037,7.79906,2817.7,2817.6,0.12179165]
[1740336066243,3.54918,2817.6,2817.1,3.54974]
[1740336066563,3.54948,2817.4,2816.9,0.7344]
[1740336066863,3.54948,2817.4,2816.9,4.28438]
[1740336067064,3.54963,2817.2,2816.7,3.55019]
[1740336067562,7.79945,2817.4,2816.9,3.54994]
[1740336067933,3.54956,2817.3,2816.7,7.10031]
[1740336068133,4.25,2817.4,2817.1,3.54965]
[1740336068533,4.25,2817.4,2817.2,0.12148338]
[1740336069868,4.25,2817.4,2817.2,3.67106338]
[1740336070071,4.25,2817.4,2817.3,3.54949]
[1740336070237,4.38008,2817.8,2817.2,0.12148338]
[1740336070438,3.54906,2817.7,2817.3,0.12156044]
[1740336070852,5.54533747,2817.8,2817.2,3.5496]
[1740336071058,4.38008,2817.8,2817.4,0.12156044]
[1740336071373,3.54899,2817.7,2817.5,0.12156044]
[1740336071538,3.54899,2817.7,2817.2,3.54961]
[1740336071869,3.54899,2817.7,2817.3,0.12156044]
[1740336072169,0.8312,2817.8,2817.2,3.54955]
[1740336072334,0.8312,2817.8,2817.4,3.5493]
[1740336072765,3.54899,2817.7,2817.5,0.12156044]
[1740336072972,3.54899,2817.7,2817.2,3.54962]
[1740336073239,3.54899,2817.7,2817.3,0.12156044]
[1740336073453,7.9291,2817.8,2817.3,3.67102044]
[1740336073652,7.9291,2817.8,2817.3,3.54946]
[1740336073874,3.549,2817.7,2817.4,0.12107237]
[1740336074375,3.54924,2817.5,2817.4,0.12107237]
[1740336074763,3.54924,2817.5,2817.1,3.54965]
[1740336074964,3.54924,2817.5,2817.2,0.12107237]
[1740336075338,3.54924,2817.5,2817.1,3.54973]
[1740336075571,3.54962,2817.2,2816.8,0.7344]
[1740336075761,3.54977,2817.1,2816.7,3.55024]
[1740336078042,3.54977,2817.1,2816.6,0.7344]
[1740336078242,7.09961,2817.1,2816.6,4.28477]
[1740336078475,4.25,2817.3,2816.6,0.7344]
[1740336078654,3.54982,2817.1,2816.4,3.55057]
[1740336078854,3.54982,2817.1,2816.6,3.55036]
[1740336079099,4.35623,2817.2,2816.7,3.55017]
[1740336079260,0.8066,2817.2,2816.8,3.55009]
[1740336079461,7.7995,2817.3,2816.8,4.28449]
[1740336079462,4.25,2817.3,2816.8,4.28449]
[1740336079663,4.25,2817.3,2817.0,3.54985]
[1740336079962,4.25,2817.3,2816.8,4.28449]
[1740336080181,4.25,2817.3,2817.0,3.54984]
[1740336080360,4.25,2817.3,2816.9,3.54998]
[1740336080646,4.25,2817.3,2816.8,4.2845]
[1740336080848,3.54969,2817.2,2816.7,3.55019]
[1740336081257,4.25,2817.3,2816.7,3.55019]
[1740336081472,4.25,2817.3,2816.9,3.54993]
[1740336082489,4.25,2817.3,2816.7,3.55016]
[1740336082688,7.79956,2817.3,2816.7,3.978616]
[1740336082985,4.25,2817.3,2816.9,3.54999]
[1740336083188,4.25,2817.3,2817.0,3.54979]
[1740336083363,4.25,2817.3,2816.9,7.09984]
[1740336083690,4.25,2817.3,2817.0,3.66718836]
[1740336083988,3.54974,2817.1,2817.0,0.11732836]
[1740336084393,3.54974,2817.1,2816.7,3.55024]
[1740336084579,3.54974,2817.1,2817.0,0.11732836]
[1740336084898,3.54974,2817.1,2816.7,3.55024]
[1740336085196,0.7521,2817.0,2816.6,3.55036]
[1740336085392,0.7521,2817.0,2816.8,0.11732836]
[1740336085580,0.7521,2817.0,2816.6,3.55036]
[1740336085745,0.7521,2817.0,2816.7,0.11760235]
[1740336086685,0.7521,2817.0,2816.7,3.66784235]
[1740336086992,0.7521,2817.0,2816.8,0.11764516]
[1740336087392,0.7521,2817.0,2816.7,3.55024]
[1740336087595,0.7521,2817.0,2816.9,0.11764516]
[1740336087796,0.7521,2817.0,2816.7,3.55024]
[1740336088003,0.7521,2817.0,2816.9,0.11764516]
[1740336088312,0.7521,2817.0,2816.7,3.55024]
[1740336088480,0.7521,2817.0,2816.9,0.11764516]
[1740336089108,0.7521,2817.0,2816.6,3.55037]
[1740336089415,0.7521,2817.0,2816.7,0.11764516]
[1740336091111,4.30198,2817.0,2816.7,0.11764516]
[1740336092511,3.55012,2816.8,2816.7,0.11764516]
[1740336092678,8.59162,2816.8,2816.7,0.11764516]
[1740336092882,3.55037,2816.6,2815.8,0.7344]
[1740336093103,3.55097,2816.2,2815.6,3.55154]
[1740336093264,3.55097,2816.2,2815.9,0.10932329]
[1740336093480,3.55075,2816.3,2815.7,3.55143]
[1740336093679,3.55095,2816.2,2816.0,0.10932329]
[1740336093879,3.55076,2816.3,2815.8,3.55138]
[1740336094081,0.7915,2816.4,2816.1,3.66030329]
[1740336094270,3.55063,2816.4,2816.0,3.55112]
[1740336094466,7.10137,2816.4,2816.2,0.10932329]
[1740336094669,3.55083,2816.3,2815.9,0.7344]
[1740336095282,3.0,2816.5,2815.9,0.7344]
[1740336095541,3.55069,2816.4,2815.9,4.28564]
[1740336095849,3.55079,2816.3,2815.9,0.7344]
[1740336096407,6.55051,2816.5,2816.0,3.55107]
[1740336097151,6.55051,2816.5,2816.1,3.551]
[1740336098157,3.0,2816.5,2816.1,3.551]
[1740336098507,3.0,2816.5,2816.2,0.10633543]
[1740336098711,3.0,2816.5,2816.2,3.65715543]
[1740336099450,5.0415,2816.6,2816.2,3.65715543]
[1740336101057,5.0415,2816.6,2816.2,0.10633543]
[1740336101235,8.59197,2816.6,2816.2,0.10633543]
[1740336101550,5.0415,2816.6,2816.2,3.65721543]
[1740336102557,8.59191,2816.6,2816.2,0.10633543]
[1740336103076,5.0415,2816.6,2816.2,3.65717543]
[1740336103772,3.7915,2816.6,2816.2,3.65717543]
[1740336104572,3.7915,2816.6,2816.2,0.10633543]
[1740336104775,4.25,2816.8,2816.5,3.55045]
[1740336105128,4.25,2816.8,2816.6,3.65332741]
[1740336105327,4.9556259,2816.9,2816.6,3.65337741]
[1740336105328,3.89252665,2816.9,2816.6,3.65337741]
[1740336105540,3.89252665,2816.9,2816.7,3.55025]
[1740336105769,3.89252665,2816.9,2816.8,0.10294031]
[1740336106075,3.89252665,2816.9,2816.7,3.55025]
[1740336106279,3.89252665,2816.9,2816.8,0.10294031]
[1740336106627,3.89252665,2816.9,2816.5,3.55042]
[1740336106885,3.89252665,2816.9,2816.8,0.10294031]
[1740336107087,3.89252665,2816.9,2816.5,3.55042]
[1740336107240,7.44261665,2816.9,2816.8,0.10294031]
[1740336107442,8.64802074,2816.9,2816.3,4.28507]
[1740336107641,7.44261665,2816.9,2816.8,0.10294031]
[1740336108145,7.44261665,2816.9,2816.4,3.5505]
[1740336108648,7.44261665,2816.9,2816.5,0.10294031]
[1740336108867,3.55015,2816.8,2816.5,0.10294031]
[1740336109654,0.7723,2816.7,2816.5,0.10294031]
[1740336109874,0.7723,2816.7,2816.3,4.28513]
[1740336110077,0.7723,2816.7,2816.6,0.10294031]
[1740336110253,0.7723,2816.7,2816.3,4.28513]
[1740336110585,0.7723,2816.7,2816.6,0.10294031]
[1740336110771,0.7723,2816.7,2816.4,0.10294031]
[1740336111471,3.5505,2816.5,2816.4,0.10294031]
[1740336111664,7.10085,2816.6,2816.4,0.10294031]
[1740336111984,3.5505,2816.5,2816.1,3.55088]
[1740336112280,3.5505,2816.5,2815.8,9.296429]
[1740336112281,3.55068,2816.4,2815.8,10.030829]
[1740336112455,3.55068,2816.4,2815.8,4.640829]
[1740336112666,3.55068,2816.4,2815.9,3.5512]
[1740336112990,3.55082,2816.3,2815.8,8.192119]
[1740336113171,3.55068,2816.4,2815.8,4.640829]
[1740336113346,3.55068,2816.4,2815.9,3.64990286]
[1740336113687,3.55064,2816.4,2815.9,3.64990286]
[1740336114413,3.55046,2816.6,2816.0,3.55106]
[1740336114414,3.5505,2816.5,2816.0,3.55106]
[1740336115108,3.5505,2816.5,2816.1,0.09872286]
[1740336115505,4.32261,2816.7,2816.2,4.28525]
[1740336115681,3.55056,2816.5,2816.1,0.09872286]
[1740336115884,3.55056,2816.5,2816.3,0.0989456]
[1740336116219,3.55056,2816.5,2816.4,0.0989456]
[1740336116524,4.32264,2816.7,2816.4,0.0989456]
[1740336116697,4.32264,2816.7,2816.3,3.55075]
[1740336117017,3.55037,2816.6,2816.4,0.0989456]
[1740336117191,4.3506,2816.5,2816.4,0.0989456]
[1740336117519,3.55081,2816.3,2815.8,4.28572]
[1740336117819,3.55081,2816.3,2815.9,0.09892846]
[1740336118332,3.55091,2816.2,2815.9,0.09892846]
[1740336118528,3.55081,2816.3,2815.9,0.09892846]
[1740336119113,3.55065,2816.4,2815.9,3.65011846]
[1740336119322,3.55065,2816.4,2815.9,0.09892846]
[1740336119523,3.55081,2816.3,2815.9,0.09892846]
[1740336119710,3.55081,2816.3,2815.8,0.7344]
[1740336119894,3.55081,2816.3,2816.0,0.09904841]
[1740336120097,3.55081,2816.3,2815.8,4.28577]
[1740336120334,3.55081,2816.3,2816.1,0.09904841]
[1740336120629,3.55081,2816.3,2816.2,0.09904841]
[1740336121033,3.55081,2816.3,2815.8,7.83703]
[1740336121238,3.55081,2816.3,2815.8,4.28571]
[1740336121534,3.55081,2816.3,2815.9,0.09904841]
[1740336121735,3.55063,2816.4,2815.9,3.65020841]
[1740336122301,3.55076,2816.3,2815.9,3.65020841]
[1740336122502,4.35068,2816.5,2815.9,0.09904841]
[1740336122732,3.55082,2816.3,2815.9,0.09904841]
[1740336122937,4.410708,2816.4,2815.9,0.09904841]
[1740336123099,4.25,2816.6,2815.9,0.09904841]
[1740336123305,4.25,2816.6,2816.4,3.55062]
[1740336123531,4.25,2816.6,2816.3,3.55068]
[1740336123713,4.25,2816.6,2816.5,0.09921972]
[1740336123926,4.25,2816.6,2816.3,3.55068]
[1740336124125,4.25,2816.6,2816.5,0.09921972]
[1740336124337,4.25,2816.6,2816.3,3.55068]
[1740336124500,4.25,2816.6,2816.5,0.09921972]
[1740336124704,4.25,2816.6,2816.3,3.55075]
[1740336124935,4.25,2816.6,2815.9,3.55125]
[1740336124936,7.80037,2816.6,2816.5,0.09921972]
[1740336125101,3.55058,2816.5,2816.1,3.55099]
[1740336125502,4.25,2816.6,2816.0,0.7344]
[1740336125735,4.34998,2817.0,2816.5,3.55041]
[1740336127639,3.0,2816.9,2816.6,3.55037]
[1740336127841,0.7674,2817.2,2816.7,0.7344]
[1740336128045,0.7674,2817.2,2816.8,3.55003]
[1740336128338,0.7674,2817.2,2816.9,3.55]
[1740336128541,0.7674,2817.2,2816.9,3.64903123]
[1740336128742,4.31709,2817.2,2816.9,0.09903123]
[1740336129043,0.7674,2817.2,2816.8,3.5501]
[1740336129378,0.7674,2817.2,2817.0,0.09903123]
[1740336129535,0.7674,2817.2,2816.8,3.5501]
[1740336129729,0.7674,2817.2,2817.1,0.0986458]
[1740336130245,0.7674,2817.2,2816.7,0.7344]
[1740336130405,0.7674,2817.2,2817.1,0.0986458]
[1740336130723,0.7674,2817.2,2816.8,3.55009]
[1740336130929,4.31702,2817.2,2817.1,0.0986458]
[1740336131452,4.31702,2817.2,2816.8,3.55009]
[1740336131611,4.31702,2817.2,2817.1,0.0986458]
[1740336131938,4.31702,2817.2,2816.7,7.83474]
[1740336132144,4.31702,2817.2,2817.1,0.0986458]
[1740336132306,4.31702,2817.2,2816.8,3.55011]
[1740336132513,4.31702,2817.2,2817.1,0.0986458]
[1740336132514,0.7674,2817.2,2817.1,0.0986458]
[1740336132714,0.7674,2817.2,2816.8,3.55011]
[1740336132929,0.7674,2817.2,2817.1,0.0986458]
[1740336133150,6.54951,2817.3,2816.9,3.55]
[1740336133677,6.54951,2817.3,2817.0,0.0986458]
[1740336133974,6.54951,2817.3,2816.8,3.55011]
[1740336134339,6.54951,2817.3,2816.9,0.0981233]
[1740336134651,6.54951,2817.3,2816.9,0.89140863]
[1740336135768,3.54965,2817.2,2816.9,0.0981233]
[1740336136140,3.54965,2817.2,2816.7,4.28464]
[1740336136335,3.54974,2817.1,2817.0,0.0981233]
[1740336136580,3.54974,2817.1,2816.7,4.28464]
[1740336137074,3.54974,2817.1,2816.8,0.0981233]
[1740336137375,3.54974,2817.1,2816.7,4.28464]
[1740336137547,3.54974,2817.1,2816.7,5.068146]
[1740336137748,3.54988,2817.0,2816.8,0.0981233]
[1740336138270,3.54988,2817.0,2816.9,0.0981233]
[1740336138638,3.54988,2817.0,2816.5,4.28485]
[1740336138839,3.54988,2817.0,2816.9,0.0981233]
[1740336139039,3.0,2817.3,2816.8,3.55003]
[1740336139040,6.5495,2817.3,2816.8,3.55003]
[1740336139406,8.60529,2817.4,2816.9,3.6480533]
[1740336139564,8.60529,2817.4,2817.0,3.54984]
[1740336139954,8.60529,2817.4,2817.1,0.0981233]
[1740336140152,10.14785668,2817.4,2817.1,0.0981233]
[1740336140359,10.14785668,2817.4,2816.9,3.54993]
[1740336140559,3.5496,2817.3,2817.2,0.0981233]
[1740336140768,3.5496,2817.3,2816.8,3.55011]
[1740336141079,3.5496,2817.3,2816.9,0.0981233]
[1740336141260,3.54972,2817.2,2816.9,0.0981233]
[1740336141585,3.54972,2817.2,2816.8,3.55009]
[1740336141786,3.54972,2817.2,2816.9,0.0981233]
[1740336141951,3.54972,2817.2,2816.5,0.7344]
[1740336142284,0.8059,2817.0,2816.7,3.55025]
[1740336142861,4.35578,2817.0,2816.8,0.0981233]
[1740336143249,3.55,2816.9,2816.3,3.55068]
[1740336143444,4.35578,2817.0,2816.4,3.55057]
[1740336143685,4.35586,2817.0,2816.3,4.28511]
[1740336143861,3.55,2816.9,2816.4,3.55061]
[1740336144368,3.55015,2816.8,2816.4,3.55061]
[1740336144571,3.55014,2816.8,2816.4,3.55061]
[1740336145570,3.55045,2816.6,2816.1,3.55096]
[1740336145776,3.5505,2816.5,2816.0,4.28542]
[1740336146176,3.5505,2816.5,2816.1,3.55099]
[1740336148857,4.35629,2816.6,2816.1,3.55099]
[1740336149573,4.223108,2816.7,2816.4,3.55061]
[1740336150789,4.223108,2816.7,2816.5,3.55048]
[1740336151189,0.8088,2816.8,2816.4,3.55061]
[1740336151392,4.35893,2816.8,2816.4,3.55061]
[1740336151599,0.8088,2816.8,2816.4,3.55061]
[1740336151922,4.35893,2816.8,2816.4,3.55061]
[1740336152687,4.35893,2816.8,2816.2,3.55087]
[1740336152688,3.55034,2816.7,2816.2,3.55087]
[1740336152903,0.71525061,2816.6,2816.2,3.55087]
[1740336153087,4.26563061,2816.6,2816.2,3.55087]
[1740336154502,0.71525061,2816.6,2816.2,3.55087]
[1740336157000,4.26570061,2816.6,2816.2,3.55087]
[1740336158498,4.26570061,2816.6,2816.3,0.09550816]
[1740336158803,0.71525061,2816.6,2816.3,0.09550816]
[1740336160491,0.71525061,2816.6,2816.3,3.64624816]
[1740336161812,0.71525061,2816.6,2816.3,0.09550816]
[1740336162422,0.71525061,2816.6,2816.3,3.64622816]
[1740336164282,0.71525061,2816.6,2816.3,3.64624816]
[1740336167022,0.71525061,2816.6,2816.3,0.09550816]
[1740336167525,0.8088,2816.8,2816.3,3.55065]
[1740336167812,4.35894,2816.8,2816.4,0.09550816]
[1740336168210,5.5721538,2816.8,2816.4,0.09550816]
[1740336168608,3.55025,2816.7,2816.4,0.09550816]
[1740336170590,7.1006,2816.7,2816.4,0.09550816]
[1740336170794,7.1006,2816.7,2816.2,3.55082]
[1740336170795,3.55044,2816.6,2816.2,3.55086]
[1740336170974,3.55044,2816.6,2816.3,0.09545677]
[1740336171179,3.55031,2816.7,2816.3,3.64619677]
[1740336171398,5.5721938,2816.8,2816.3,0.09545677]
[1740336171600,5.5721938,2816.8,2816.3,3.55069]
[1740336171792,5.5721938,2816.8,2816.4,0.09545677]
[1740336173300,3.55027,2816.7,2816.4,0.09545677]
[1740336174823,5.5721438,2816.8,2816.4,0.09545677]
[1740336175515,3.55031,2816.7,2816.4,0.09545677]
[1740336175826,2.0220138,2816.8,2816.4,3.64601677]
[1740336176123,4.35893,2816.8,2816.4,3.64601677]
[1740336176485,4.223108,2816.9,2816.7,3.55025]
[1740336176685,0.7933,2817.1,2816.8,3.55004]
[1740336176880,0.7933,2817.1,2816.8,3.64582222]
[1740336181617,0.7933,2817.1,2816.8,0.09578222]
[1740336181824,0.7933,2817.1,2816.7,7.10036]
[1740336182123,0.7933,2817.1,2816.8,0.09544817]
[1740336182547,0.7933,2817.1,2816.7,7.10036]
[1740336182748,0.7933,2817.1,2816.9,0.09544817]
[1740336182948,0.7933,2817.1,2816.7,7.10036]
[1740336183147,0.7933,2817.1,2817.0,0.09544817]
[1740336183357,0.7933,2817.1,2816.8,3.55012]
[1740336183551,0.7933,2817.1,2817.0,0.09544817]
[1740336183754,0.7933,2817.1,2816.8,3.55012]
[1740336184026,0.7933,2817.1,2817.0,0.09544817]
[1740336184422,0.7933,2817.1,2816.8,3.55012]
[1740336184630,0.7933,2817.1,2816.9,0.09544817]
[1740336186629,4.34305,2817.1,2816.9,0.09544817]
[1740336187003,3.5502,2816.8,2816.3,3.55072]
[1740336187439,3.5502,2816.8,2816.4,0.09543961]
[1740336187745,3.55019,2816.8,2816.4,0.09543961]
[1740336189044,4.36093,2816.9,2816.4,3.64603961]
[1740336189344,3.7904,2817.1,2816.4,0.88855557]
[1740336189633,3.7904,2817.1,2816.4,0.09543961]
[1740336189798,3.55015,2816.8,2816.4,3.64605961]
[1740336189998,3.55015,2816.8,2816.4,0.09543961]
[1740336190315,4.33245,2816.7,2816.2,4.28526]
[1740336190516,4.33245,2816.7,2816.5,0.09543961]
[1740336190844,4.33245,2816.7,2816.3,3.55075]
[1740336191351,4.33245,2816.7,2816.4,0.09543961]
[1740336191514,0.7822,2816.9,2816.4,3.64606961]
[1740336191695,4.33232,2816.9,2816.4,3.64606961]
[1740336191901,3.55018,2816.8,2816.4,0.09543961]